bitfinex/quotes_BTCUSD_20240819
["timestamp","ask_amount","ask_price","bid_price","bid_amount"]
[1724088322274,1.96124382,58913.0,58912.0,0.0013079]
[1724088322710,1.9575411,58913.0,58912.0,0.0013079]
[1724088322911,1.80523811,58913.0,58912.0,0.0013079]
[1724088323118,1.9575411,58913.0,58912.0,0.0013079]
[1724088323320,2.11590517,58913.0,58912.0,0.0013079]
[1724088323529,1.80523811,58913.0,58912.0,0.0013079]
[1724088324139,1.9575411,58913.0,58912.0,0.0013079]
[1724088325371,1.96442238,58913.0,58912.0,0.0013079]
[1724088325608,1.95762029,58913.0,58912.0,0.0013079]
[1724088325845,2.11655316,58913.0,58912.0,0.0013079]
[1724088326075,1.95762029,58913.0,58912.0,0.0013079]
[1724088326353,1.71686768,58913.0,58912.0,0.0013079]
[1724088326590,2.11775684,58913.0,58912.0,0.0013079]
[1724088326823,1.96535565,58913.0,58912.0,0.0013079]
[1724088327321,2.43483865,58913.0,58912.0,0.0013079]
[1724088327567,2.43783865,58913.0,58912.0,0.00071245]
[1724088327796,2.77732165,58913.0,58912.0,0.00071245]
[1724088328037,2.43483865,58913.0,58912.0,0.00071245]
[1724088328286,2.42483865,58913.0,58912.0,0.00071245]
[1724088328519,2.43883865,58913.0,58912.0,0.00071245]
[1724088329001,1.5277,58912.0,58908.0,0.0009042]
[1724088329280,2.31014465,58912.0,58908.0,0.0009042]
[1724088329512,2.31314465,58912.0,58908.0,0.0009042]
[1724088329752,2.73003365,58912.0,58908.0,0.0009042]
[1724088329991,2.72703365,58912.0,58908.0,0.0009042]
[1724088330559,2.73403365,58912.0,58911.0,0.00143684]
[1724088330772,2.90542195,58912.0,58911.0,0.00143684]
[1724088330994,2.73403365,58912.0,58911.0,0.00143684]
[1724088331205,2.90542192,58912.0,58911.0,0.00143684]
[1724088331472,2.91942192,58912.0,58911.0,0.00143684]
[1724088332370,2.74803365,58912.0,58911.0,0.00143684]
[1724088333318,2.73303365,58912.0,58911.0,0.00143684]
[1724088333997,1.78230688,58912.0,58911.0,0.00143684]
[1724088334260,1.62304145,58912.0,58911.0,0.00143684]
[1724088335012,1.18355245,58912.0,58911.0,0.00143684]
[1724088335305,0.3664523,58912.0,58911.0,0.00143684]
[1724088335503,0.3664523,58912.0,58911.0,0.58997884]
[1724088335504,0.021,58912.0,58911.0,0.58997884]
[1724088335936,0.021,58912.0,58911.0,0.60169293]
[1724088336173,0.007,58912.0,58911.0,0.26219793]
[1724088336383,0.007,58912.0,58911.0,0.32529793]
[1724088336610,0.000821,58913.0,58912.0,0.169744]
[1724088336854,0.000821,58913.0,58912.0,0.655133]
[1724088337096,0.000821,58913.0,58912.0,1.0063172]
[1724088338503,0.000821,58913.0,58912.0,1.0073172]
[1724088338734,0.000821,58913.0,58912.0,0.6718282]
[1724088339231,0.000821,58913.0,58912.0,1.0113172]
[1724088339454,0.000821,58913.0,58912.0,1.52215497]
[1724088339638,0.05073472,58926.0,58924.0,0.16971]
[1724088339873,0.05073472,58928.0,58925.0,0.312305]
[1724088340132,0.05073472,58928.0,58926.0,0.169703]
[1724088340365,0.000822,58929.0,58926.0,0.169703]
[1724088340601,0.000822,58929.0,58927.0,0.01162169]
[1724088340849,0.170518,58929.0,58927.0,0.01162169]
[1724088341051,0.000822,58929.0,58927.0,0.18132169]
[1724088341296,0.000822,58929.0,58927.0,0.1697]
[1724088341533,0.000822,58929.0,58928.0,0.01162169]
[1724088341534,0.170517,58929.0,58928.0,0.01162169]
[1724088341972,0.170517,58929.0,58928.0,0.01161687]
[1724088342412,1.04364777,58929.0,58928.0,0.01161687]
[1724088342634,1.38303877,58929.0,58928.0,0.01161687]
[1724088342876,0.848492,58928.0,58927.0,0.002]
[1724088343111,0.871492,58928.0,58927.0,0.002]
[1724088344059,0.509112,58926.0,58925.0,0.1426]
[1724088344307,0.87152,58926.0,58925.0,0.1426]
[1724088345152,0.532112,58926.0,58925.0,0.1426]
[1724088345313,0.532112,58926.0,58925.0,0.15421187]
[1724088345724,1.04286877,58926.0,58925.0,0.01161187]
[1724088345937,1.04286877,58926.0,58919.0,0.1421]
[1724088345938,0.169721,58920.0,58919.0,0.1421]
[1724088347205,0.509164,58920.0,58919.0,0.1421]
[1724088347730,0.509164,58920.0,58919.0,0.1441]
[1724088347935,0.848607,58920.0,58919.0,0.1441]
[1724088348769,0.848607,58920.0,58919.0,0.1461]
[1724088348976,0.848607,58920.0,58913.0,0.142]
[1724088348977,0.848692,58914.0,58913.0,0.142]
[1724088349375,0.509215,58914.0,58913.0,0.142]
[1724088349579,0.848692,58914.0,58913.0,0.142]
[1724088349806,0.509215,58914.0,58913.0,0.142]
[1724088350555,0.509215,58914.0,58913.0,0.15363924]
[1724088350757,0.848692,58914.0,58913.0,0.15363924]
[1724088350964,0.510215,58914.0,58913.0,0.16263924]
[1724088351161,0.511215,58914.0,58913.0,0.16463924]
[1724088351741,0.002,58914.0,58913.0,0.16463924]
[1724088351997,0.171738,58914.0,58913.0,0.16463924]
[1724088352192,0.511215,58914.0,58913.0,0.16463924]
[1724088352380,0.171738,58914.0,58913.0,0.16463924]
[1724088353339,0.5108064,58914.0,58913.0,0.16463924]
[1724088353547,0.5108064,58914.0,58913.0,0.153]
[1724088353741,0.1713294,58914.0,58913.0,0.16463668]
[1724088354155,0.1713294,58914.0,58913.0,0.16553978]
[1724088354366,0.0015914,58914.0,58913.0,0.33528078]
[1724088354572,0.0015914,58914.0,58913.0,1.01424678]
[1724088354774,0.0015914,58914.0,58913.0,1.35372978]
[1724088354974,0.0015914,58914.0,58913.0,2.85372978]
[1724088357877,0.0015914,58914.0,58913.0,1.01424678]
[1724088358081,0.0015914,58914.0,58913.0,0.16553978]
[1724088358316,0.0015914,58914.0,58913.0,0.33528078]
[1724088358703,0.0015914,58914.0,58913.0,0.16553978]
[1724088359321,0.0015914,58914.0,58913.0,0.33528078]
[1724088359522,0.0015914,58914.0,58913.0,0.16553978]
[1724088359896,0.0015914,58914.0,58913.0,0.33528078]
[1724088360095,0.0015914,58914.0,58913.0,0.16553978]
[1724088360304,0.0015914,58914.0,58913.0,0.33528078]
[1724088360569,0.0015914,58914.0,58913.0,1.01424678]
[1724088360713,0.0015914,58914.0,58913.0,1.35372978]
[1724088361850,0.0015914,58914.0,58913.0,2.85372978]
[1724088367227,0.0015914,58914.0,58913.0,3.36456155]
[1724088367642,0.0015914,58914.0,58913.0,3.80404455]
[1724088367854,0.000821,58920.0,58919.0,1.66972]
[1724088368058,0.000821,58920.0,58919.0,2.46971777]
[1724088368266,0.000821,58920.0,58919.0,2.5813292]
[1724088368475,0.000821,58920.0,58919.0,4.4207782]
[1724088369092,0.000821,58920.0,58919.0,4.4347782]
[1724088369304,0.001821,58920.0,58919.0,4.4347782]
[1724088369507,0.001821,58920.0,58919.0,4.0953292]
[1724088369715,0.001821,58920.0,58919.0,4.0943292]
[1724088369916,0.001821,58920.0,58919.0,3.7558802]
[1724088370605,0.001821,58920.0,58919.0,3.7568802]
[1724088370942,0.001821,58920.0,58919.0,3.7658802]
[1724088371027,0.002821,58920.0,58919.0,4.1053292]
[1724088371232,0.002821,58920.0,58919.0,4.1073292]
[1724088371434,0.002821,58920.0,58919.0,4.11648373]
[1724088371608,0.002821,58920.0,58919.0,3.77703473]
[1724088371819,0.002821,58920.0,58919.0,3.77903473]
[1724088372621,0.002821,58920.0,58919.0,4.11848373]
[1724088374277,0.000822,58929.0,58928.0,2.010783]
[1724088374482,0.000822,58929.0,58928.0,2.91072877]
[1724088374727,0.000822,58929.0,58928.0,2.92421152]
[1724088375818,0.000822,58929.0,58928.0,2.93821152]
[1724088376041,0.000822,58929.0,58928.0,2.92421152]
[1724088376470,0.000822,58929.0,58928.0,2.93821152]
[1724088377327,0.000821,58931.0,58930.0,1.871617]
[1724088377537,0.000821,58931.0,58930.0,2.28536577]
[1724088377952,0.000821,58931.0,58930.0,1.95346352]
[1724088378156,0.000821,58931.0,58930.0,2.29284852]
[1724088378361,0.000821,58931.0,58930.0,2.30684852]
[1724088378600,0.000821,58931.0,58930.0,2.32284852]
[1724088378779,0.000821,58931.0,58930.0,3.82284852]
[1724088378977,0.000821,58931.0,58930.0,3.82184852]
[1724088379187,0.000821,58931.0,58930.0,3.82284852]
[1724088379402,0.000821,58931.0,58930.0,3.82084852]
[1724088379635,0.000821,58931.0,58930.0,3.48046352]
[1724088379863,0.000821,58931.0,58930.0,3.48346352]
[1724088380078,0.000821,58931.0,58930.0,3.48546352]
[1724088380939,0.000821,58931.0,58930.0,3.48046352]
[1724088381341,0.000821,58931.0,58930.0,1.46972975]
[1724088382393,0.000821,58931.0,58930.0,1.45572975]
[1724088382581,0.000821,58931.0,58930.0,1.46972975]
[1724088383111,0.000821,58931.0,58930.0,1.62707852]
[1724088383338,0.000821,58931.0,58930.0,1.63607852]
[1724088383805,0.000821,58931.0,58930.0,1.62707852]
[1724088384031,0.000821,58931.0,58930.0,1.96646352]
[1724088384261,0.000821,58931.0,58930.0,1.97546352]
[1724088385410,0.000821,58931.0,58930.0,0.64355975]
[1724088385645,0.000821,58931.0,58930.0,2.14355975]
[1724088385844,0.000821,58931.0,58930.0,2.48294475]
[1724088386238,0.000821,58931.0,58930.0,2.82232975]
[1724088388228,0.000821,58931.0,58930.0,0.98294475]
[1724088389574,0.000821,58931.0,58930.0,1.32232975]
[1724088390086,0.000821,58931.0,58930.0,0.98294475]
[1724088390284,0.000821,58931.0,58930.0,1.32232975]
[1724088391132,0.000821,58931.0,58930.0,0.98294475]
[1724088391571,0.000821,58931.0,58930.0,1.32232975]
[1724088392220,0.000821,58931.0,58930.0,1.33228868]
[1724088393489,0.000821,58931.0,58930.0,2.83228868]
[1724088393898,0.063521,58943.0,58941.0,0.16966]
[1724088394324,0.063521,58943.0,58942.0,0.01146803]
[1724088395937,0.572486,58943.0,58942.0,0.01146803]
[1724088396137,0.572486,58943.0,58938.0,0.169669]
[1724088396138,0.169662,58941.0,58938.0,0.169669]
[1724088396345,0.169661,58941.0,58938.0,0.169669]
[1724088396543,0.169658,58942.0,58939.0,0.01146803]
[1724088396750,0.169662,58941.0,58939.0,0.01146803]
[1724088396965,0.402831,58943.0,58939.0,0.169666]
[1724088397256,0.169665,58940.0,58937.0,0.169671]
[1724088398314,0.169661,58941.0,58937.0,0.169671]
[1724088398523,0.063521,58943.0,58939.0,0.169666]
[1724088398733,0.063521,58943.0,58936.0,0.339351]
[1724088398951,0.063521,58943.0,58942.0,0.169658]
[1724088399145,0.063521,58943.0,58940.0,0.339322]
[1724088399146,0.063521,58943.0,58941.0,0.16966]
[1724088399356,0.063521,58943.0,58940.0,0.339322]
[1724088399561,0.063521,58943.0,58942.0,0.169658]
[1724088399771,0.063521,58943.0,58942.0,0.508974]
[1724088400392,0.065521,58943.0,58942.0,0.169658]
[1724088400807,0.065521,58943.0,58942.0,0.508974]
[1724088401009,0.063521,58943.0,58942.0,0.508974]
[1724088401216,0.065521,58943.0,58942.0,0.169658]
[1724088401432,0.065521,58943.0,58938.0,0.339334]
[1724088401644,0.065521,58943.0,58937.0,0.339343]
[1724088401851,0.023,58942.0,58924.0,0.417115]
[1724088402052,0.023,58942.0,58935.0,0.169676]
[1724088402053,0.339335,58939.0,58935.0,0.169676]
[1724088402260,0.169671,58938.0,58935.0,0.169676]
[1724088402479,0.169671,58938.0,58928.0,0.0009031]
[1724088402480,0.25334877,58937.0,58928.0,0.0009031]
[1724088402694,0.251695,58929.0,58928.0,0.0009031]
[1724088402903,0.105,58929.0,58928.0,0.0009031]
[1724088403111,0.274695,58929.0,58928.0,0.0009031]
[1724088403555,0.614086,58929.0,58928.0,0.01180429]
[1724088403777,0.614086,58929.0,58928.0,0.0019031]
[1724088403989,0.614086,58929.0,58928.0,0.01780429]
[1724088404195,0.614086,58929.0,58928.0,0.01680429]
[1724088404407,0.082,58933.0,58928.0,0.01680429]
[1724088404615,0.002,58929.0,58928.0,1.20469329]
[1724088405091,0.002,58929.0,58928.0,1.26469329]
[1724088405568,0.002,58929.0,58928.0,2.76469329]
[1724088405789,0.68370832,58941.0,58937.0,0.169672]
[1724088406239,0.68370832,58941.0,58928.0,1.57680429]
[1724088406240,0.082,58942.0,58939.0,0.169665]
[1724088406480,0.082,58942.0,58937.0,0.339341]
[1724088406719,0.082,58942.0,58938.0,0.169667]
[1724088406965,0.082,58942.0,58939.0,0.169665]
[1724088407177,0.251659,58942.0,58939.0,0.169665]
[1724088407389,0.251659,58942.0,58939.0,0.001]
[1724088407604,0.251659,58942.0,58940.0,0.01091873]
[1724088407825,0.260659,58942.0,58940.0,0.01091873]
[1724088408025,0.260659,58942.0,58938.0,0.170668]
[1724088408245,0.260659,58942.0,58941.0,0.01091873]
[1724088408453,0.260659,58942.0,58938.0,0.170668]
[1724088408656,0.31139974,58942.0,58941.0,0.01090671]
[1724088408890,0.31139974,58942.0,58939.0,0.169666]
[1724088409121,0.31139974,58942.0,58941.0,0.01091435]
[1724088409122,0.260659,58942.0,58941.0,0.01091435]
[1724088409328,0.30239974,58942.0,58940.0,0.01091507]
[1724088409534,0.30339974,58942.0,58938.0,0.169668]
[1724088409747,0.30339974,58942.0,58928.0,0.0609031]
[1724088409748,0.339328,58940.0,58928.0,0.0609031]
[1724088409955,0.339328,58940.0,58931.0,0.339378]
[1724088409956,0.169672,58937.0,58931.0,0.339378]
[1724088410160,0.169672,58937.0,58933.0,0.169681]
[1724088410366,0.169673,58937.0,58933.0,0.169681]
[1724088410569,0.169673,58937.0,58934.0,0.01091507]
[1724088410983,0.169676,58936.0,58933.0,0.169684]
[1724088411175,0.22047197,58936.0,58933.0,0.169684]
[1724088411404,0.169676,58936.0,58935.0,0.01091507]
[1724088411692,0.169676,58936.0,58933.0,0.169684]
[1724088411864,0.169676,58936.0,58934.0,0.01091507]
[1724088412085,0.169676,58936.0,58933.0,0.169684]
[1724088412297,0.22047197,58936.0,58933.0,0.169684]
[1724088412501,0.169676,58936.0,58934.0,0.01491507]
[1724088412735,0.05079597,58937.0,58934.0,0.18459607]
[1724088412947,0.05079597,58937.0,58934.0,0.19159607]
[1724088413153,0.05079597,58936.0,58934.0,0.18059607]
[1724088413558,0.05079597,58936.0,58935.0,0.169678]
[1724088413764,0.05079597,58936.0,58934.0,0.18059507]
[1724088413969,0.22047297,58936.0,58934.0,0.01091507]
[1724088414169,0.05079597,58937.0,58934.0,0.01691507]
[1724088414376,0.169675,58936.0,58934.0,0.002]
[1724088414555,0.169675,58936.0,58935.0,0.01091507]
[1724088414787,0.05079597,58937.0,58935.0,0.01091507]
[1724088414989,0.05079597,58937.0,58935.0,0.18059307]
[1724088415191,0.05079597,58937.0,58935.0,0.01091507]
[1724088415627,0.05079597,58937.0,58935.0,0.18059307]
[1724088415825,0.17134877,58941.0,58940.0,0.169664]
[1724088415826,0.05079597,58941.0,58940.0,0.169664]
[1724088416040,0.05079597,58941.0,58940.0,0.84832]
[1724088416253,0.05161697,58942.0,58941.0,0.508983]
[1724088416461,0.05161697,58942.0,58941.0,0.848305]
[1724088416896,0.05161697,58942.0,58941.0,0.85922425]
[1724088419045,0.05161697,58942.0,58941.0,0.86322425]
[1724088419233,0.05161697,58942.0,58941.0,0.87022425]
[1724088419613,0.000821,58942.0,58941.0,0.87022425]
[1724088419816,0.05165707,58942.0,58941.0,0.87022425]
[1724088420018,0.000821,58942.0,58941.0,0.87022425]
[1724088421200,0.05165707,58942.0,58941.0,0.87022425]
[1724088421850,0.05165707,58942.0,58941.0,0.53090225]
[1724088423002,0.05165707,58942.0,58941.0,0.87022425]
[1724088423676,0.05165707,58942.0,58941.0,0.53090225]
[1724088424401,0.000821,58942.0,58941.0,0.53090225]
[1724088424631,0.000821,58942.0,58941.0,0.87022425]
[1724088425519,0.000821,58942.0,58941.0,0.53090225]
[1724088425744,0.000821,58942.0,58941.0,0.87022425]
[1724088426200,0.07707511,58942.0,58941.0,0.53090225]
[1724088426423,0.07707511,58942.0,58941.0,0.87022425]
[1724088426681,0.07707511,58942.0,58941.0,0.53090225]
[1724088428537,0.07707511,58942.0,58941.0,0.87022425]
[1724088428759,0.07707511,58942.0,58941.0,0.53090225]
[1724088430840,0.07707511,58942.0,58941.0,0.19158025]
[1724088431604,0.07707511,58942.0,58941.0,0.02191925]
[1724088431605,0.37396919,58942.0,58941.0,0.02191925]
[1724088431860,0.11973546,58942.0,58941.0,0.02191925]
[1724088432115,0.07713792,58942.0,58941.0,0.02191925]
[1724088432348,0.07713792,58942.0,58941.0,0.60740225]
[1724088432349,0.000821,58942.0,58941.0,0.60740225]
[1724088432613,0.000821,58942.0,58941.0,1.34474625]
[1724088432886,0.001821,58942.0,58941.0,1.33774625]
[1724088433177,0.001821,58942.0,58941.0,1.67806825]
[1724088433449,0.000821,58942.0,58941.0,1.84941702]
[1724088433687,0.000821,58942.0,58941.0,3.36141702]
[1724088433912,0.000821,58942.0,58941.0,3.35341702]
[1724088434154,0.000821,58942.0,58941.0,3.35241702]
[1724088434382,0.000821,58942.0,58941.0,3.36641702]
[1724088434614,0.000821,58942.0,58941.0,3.35241702]
[1724088434849,0.000821,58942.0,58941.0,3.36641702]
[1724088435099,0.000821,58942.0,58941.0,3.36541702]
[1724088435508,0.000821,58942.0,58941.0,3.37941702]
[1724088435746,0.000821,58942.0,58941.0,3.37641702]
[1724088435942,0.000821,58942.0,58941.0,2.85174625]
[1724088436368,0.000821,58942.0,58941.0,2.86574625]
[1724088438911,0.000821,58942.0,58941.0,2.86664935]
[1724088440935,0.000821,58942.0,58941.0,3.37832012]
[1724088441431,0.000821,58942.0,58941.0,3.71764212]
[1724088441671,0.000821,58942.0,58941.0,4.15896412]
[1724088441910,0.000821,58942.0,58941.0,4.19504515]
[1724088442204,0.000821,58942.0,58941.0,4.21104515]
[1724088442386,0.000821,58942.0,58941.0,4.16096412]
[1724088442605,0.000821,58942.0,58941.0,4.13296412]
[1724088443026,0.000821,58942.0,58941.0,4.16096412]
[1724088443228,0.000821,58942.0,58941.0,4.14696412]
[1724088443655,0.000821,58942.0,58941.0,4.16096412]
[1724088445308,0.000821,58942.0,58941.0,3.81964212]
[1724088445519,0.000821,58942.0,58941.0,3.81764212]
[1724088448004,0.000821,58942.0,58941.0,1.36664935]
[1724088449173,0.000821,58942.0,58941.0,1.46664935]
[1724088450875,0.000821,58942.0,58941.0,1.63799812]
[1724088451104,0.000821,58942.0,58941.0,1.97732012]
[1724088451929,0.000821,58942.0,58941.0,3.47732012]
[1724088452144,0.000821,58942.0,58941.0,3.48232012]
[1724088452583,0.000821,58942.0,58941.0,3.47832012]
[1724088452792,0.000821,58942.0,58941.0,3.47732012]
[1724088453200,0.000821,58942.0,58941.0,3.47832012]
[1724088453841,0.000821,58942.0,58941.0,3.81964212]
[1724088454723,0.000821,58942.0,58941.0,3.82643812]
[1724088455814,0.000821,58942.0,58941.0,3.82843812]
[1724088457334,0.0807,58967.0,58966.0,0.847945]
[1724088457596,0.00821,58972.0,58970.0,0.847887]
[1724088457812,0.00821,58972.0,58970.0,1.187042]
[1724088458018,0.00821,58972.0,58970.0,0.85867679]
[1724088458230,0.00821,58972.0,58970.0,2.35867679]
[1724088458427,0.00821,58972.0,58970.0,0.85867679]
[1724088458880,0.00821,58972.0,58970.0,1.19783179]
[1724088459330,0.00821,58972.0,58970.0,1.20983179]
[1724088460519,0.00821,58972.0,58970.0,1.21883179]
[1724088460731,0.00821,58972.0,58970.0,0.87967679]
[1724088461182,0.08891,58971.0,58970.0,0.87967679]
[1724088461400,0.08891,58971.0,58970.0,0.85867679]
[1724088461855,0.08891,58971.0,58970.0,0.88167679]
[1724088462089,0.08891,58971.0,58970.0,0.86767679]
[1724088462309,0.08891,58971.0,58970.0,0.87067679]
[1724088462534,0.08891,58971.0,58970.0,0.02278979]
[1724088462825,0.34006547,58971.0,58970.0,0.02278979]
[1724088463045,1.16723077,58971.0,58970.0,0.02278979]
[1724088463258,1.50637977,58971.0,58970.0,0.012]
[1724088463476,1.50637977,58971.0,58970.0,0.021]
[1724088464146,1.50637977,58971.0,58970.0,0.012]
[1724088464363,1.50637977,58971.0,58970.0,0.013]
[1724088464576,1.16723077,58971.0,58970.0,0.013]
[1724088464791,0.633733,58971.0,58970.0,0.013]
[1724088464999,0.633733,58971.0,58970.0,0.001]
[1724088465000,0.294584,58971.0,58970.0,0.001]
[1724088465218,0.656733,58971.0,58970.0,0.01279272]
[1724088465449,0.995882,58971.0,58970.0,0.002]
[1724088466800,0.656733,58971.0,58970.0,0.002]
[1724088468134,0.82808177,58971.0,58970.0,0.002]
[1724088468351,1.16723077,58971.0,58970.0,0.002]
[1724088468570,1.21789354,58971.0,58970.0,0.002]
[1724088468794,1.55704254,58971.0,58970.0,0.002]
[1724088469007,1.21791312,58971.0,58970.0,0.002]
[1724088469213,1.16723077,58971.0,58970.0,0.002]
[1724088469850,1.50637977,58971.0,58970.0,0.002]
[1724088470082,1.67772854,58971.0,58970.0,0.002]
[1724088470332,1.7537227,58971.0,58970.0,0.002]
[1724088470586,1.87799035,58971.0,58970.0,0.002]
[1724088471260,1.87799035,58971.0,58970.0,0.00100609]
[1724088471447,2.21713935,58971.0,58970.0,0.00100609]
[1724088471649,1.87599035,58971.0,58970.0,0.00100609]
[1724088471897,1.87365694,58971.0,58970.0,0.00100609]
[1724088472313,2.02778112,58971.0,58970.0,0.00100609]
[1724088472512,2.36693012,58971.0,58970.0,0.00100609]
[1724088472717,2.02378112,58971.0,58970.0,0.00100609]
[1724088473177,1.85143235,58971.0,58970.0,0.00100609]
[1724088473379,1.69930817,58971.0,58970.0,0.00100609]
[1724088473793,1.02101017,58971.0,58970.0,0.00100609]
[1724088474005,0.95523717,58971.0,58970.0,0.00100609]
[1724088474208,1.33715917,58971.0,58970.0,0.00100609]
[1724088474461,1.43861495,58971.0,58970.0,0.00100609]
[1724088474657,1.59605935,58971.0,58970.0,0.00100609]
[1724088474871,2.17390157,58971.0,58970.0,0.00100609]
[1724088475096,2.32602575,58971.0,58970.0,0.00100609]
[1724088475301,2.39292385,58971.0,58970.0,0.00100609]
[1724088475953,2.39492385,58971.0,58970.0,0.001]
[1724088476159,0.169626,58953.0,58949.0,0.231437]
[1724088476365,0.0762,58958.0,58949.0,0.231437]
[1724088476366,0.16963,58952.0,58949.0,0.231437]
[1724088476569,0.16963,58952.0,58950.0,0.01117575]
[1724088477005,0.169623,58955.0,58951.0,0.169631]
[1724088477213,0.169623,58955.0,58950.0,0.339268]
[1724088477214,0.34096377,58957.0,58954.0,0.169623]
[1724088477418,0.19434877,58956.0,58952.0,0.01047727]
[1724088477622,0.169622,58955.0,58951.0,0.169631]
[1724088477827,0.36396677,58956.0,58953.0,0.01047727]
[1724088478031,0.36396677,58956.0,58950.0,0.339268]
[1724088478032,0.169621,58955.0,58952.0,0.169629]
[1724088478280,0.169621,58955.0,58954.0,0.01047727]
[1724088478460,0.169621,58955.0,58950.0,0.169634]
[1724088478461,0.169626,58953.0,58950.0,0.169634]
[1724088478711,0.848102,58955.0,58954.0,0.01047727]
[1724088478947,0.339254,58953.0,58941.0,0.3402211]
[1724088479185,0.508901,58951.0,58950.0,0.007]
[1724088479420,1.04251877,58951.0,58950.0,0.007]
[1724088479717,0.41475554,58951.0,58950.0,0.016]
[1724088479998,0.41475554,58951.0,58947.0,0.169642]
[1724088480236,0.41475554,58951.0,58941.0,0.0009031]
[1724088480237,0.0761693,58953.0,58951.0,0.169632]
[1724088480486,0.12688431,58956.0,58955.0,0.16962]
[1724088480487,0.05077477,58956.0,58955.0,0.16962]
[1724088480750,0.05077477,58958.0,58954.0,0.003]
[1724088481010,0.023,58957.0,58956.0,0.169618]
[1724088481274,0.023,58957.0,58955.0,0.01051318]
[1724088481275,0.023,58957.0,58955.0,0.18013318]
[1724088481501,0.023,58957.0,58955.0,0.16962]
[1724088481748,0.023,58957.0,58956.0,0.18013118]
[1724088481991,0.023,58957.0,58956.0,0.01051318]
[1724088482427,0.024,58957.0,58956.0,0.01051318]
[1724088482868,0.532845,58957.0,58956.0,0.01051318]
[1724088483050,0.194615,58957.0,58956.0,0.01051318]
[1724088483293,0.169618,58956.0,58952.0,0.169628]
[1724088483503,0.169618,58956.0,58953.0,0.169626]
[1724088483709,0.027,58957.0,58956.0,0.508854]
[1724088483937,0.004,58957.0,58956.0,0.508854]
[1724088484358,0.002,58957.0,58956.0,0.508854]
[1724088484769,0.002,58957.0,58956.0,0.169618]
[1724088484989,0.002,58957.0,58954.0,0.339245]
[1724088484990,0.002,58957.0,58954.0,0.169622]
[1724088485199,0.023,58958.0,58957.0,0.169615]
[1724088485415,0.05077553,58959.0,58957.0,0.169615]
[1724088485619,0.05077553,58959.0,58958.0,0.169612]
[1724088485882,0.05077553,58959.0,58958.0,0.85858105]
[1724088486115,0.05077553,58959.0,58958.0,1.27810505]
[1724088486331,0.05077553,58966.0,58965.0,0.249892]
[1724088486539,0.00821,58971.0,58970.0,0.508732]
[1724088486750,0.00821,58971.0,58970.0,0.93869546]
[1724088486996,0.00821,58971.0,58970.0,1.27785046]
[1724088487488,0.00821,58971.0,58970.0,1.34135046]
[1724088487706,0.00821,58971.0,58970.0,1.00219546]
[1724088488159,0.00821,58971.0,58970.0,1.68008546]
[1724088488417,0.34913277,58971.0,58970.0,0.01450846]
[1724088488639,0.27348942,58971.0,58970.0,0.02550846]
[1724088488845,0.00921,58971.0,58970.0,0.19508546]
[1724088489076,0.00821,58971.0,58970.0,1.69108546]
[1724088489287,0.00821,58971.0,58970.0,1.68308546]
[1724088489498,0.00821,58971.0,58970.0,1.51350846]
[1724088489711,0.177784,58971.0,58970.0,1.51550846]
[1724088490136,0.516933,58971.0,58970.0,1.51850846]
[1724088490357,0.516933,58971.0,58970.0,0.01850846]
[1724088490358,1.31684482,58971.0,58970.0,0.01850846]
[1724088490577,1.31684482,58971.0,58955.0,0.00040838]
[1724088490578,0.586454,58956.0,58955.0,0.00040838]
[1724088490787,0.78080277,58956.0,58955.0,0.00040838]
[1724088491023,1.36745894,58956.0,58955.0,0.00040838]
[1724088491236,1.24050809,58956.0,58955.0,0.00040838]
[1724088491448,1.19621147,58956.0,58955.0,0.00040838]
[1724088492080,1.35580244,58956.0,58955.0,0.00040838]
[1724088492339,1.70486479,58956.0,58955.0,0.00040838]
[1724088492545,1.52501988,58956.0,58955.0,0.00040838]
[1724088492762,1.59225349,58956.0,58955.0,0.00040838]
[1724088492968,1.35456413,58956.0,58955.0,0.00040838]
[1724088493199,1.35856371,58956.0,58955.0,0.00040838]
[1724088493418,1.35881199,58956.0,58955.0,0.00040838]
[1724088493687,1.51099587,58956.0,58955.0,0.00040838]
[1724088493901,1.40545445,58956.0,58955.0,0.00040838]
[1724088494113,1.41245445,58956.0,58955.0,0.00040838]
[1724088494793,0.16965,58945.0,58940.0,0.0009031]
[1724088495011,0.169652,58944.0,58940.0,0.0009031]
[1724088495237,0.05076811,58948.0,58940.0,0.0009031]
[1724088495448,0.05076811,58951.0,58947.0,0.169642]
[1724088495656,0.023,58950.0,58945.0,0.339298]
[1724088495865,0.023,58950.0,58940.0,0.0009031]
[1724088495866,0.023,58950.0,58947.0,0.169642]
[1724088496289,0.192636,58950.0,58946.0,0.169646]
[1724088496496,0.023,58950.0,58946.0,0.169644]
[1724088496925,0.023,58950.0,58945.0,0.339294]
[1724088496926,0.023,58950.0,58947.0,0.245842]
[1724088497349,0.339287,58947.0,58941.0,0.0009031]
[1724088497555,0.16965,58945.0,58941.0,0.1705631]
[1724088497996,0.192652,58944.0,58941.0,0.0009031]
[1724088498203,0.023,58944.0,58942.0,0.00847297]
[1724088498459,1.09722377,58943.0,58942.0,0.00847297]
[1724088498741,0.68031377,58943.0,58942.0,0.00847297]
[1724088498948,0.68031377,58943.0,58941.0,0.0009031]
[1724088498949,0.508974,58942.0,58941.0,0.0009031]
[1724088499165,0.023,58942.0,58941.0,0.00937607]
[1724088499379,0.023,58942.0,58941.0,0.01437607]
[1724088499587,0.023,58942.0,58941.0,0.00937607]
[1724088499792,0.023,58942.0,58941.0,0.51835907]
[1724088499998,0.023,58944.0,58941.0,0.17903707]
[1724088500640,0.023,58944.0,58942.0,0.169657]
[1724088500850,0.023,58944.0,58943.0,0.508965]
[1724088501308,0.023,58944.0,58943.0,0.51743797]
[1724088501519,0.023,58947.0,58944.0,0.16965]
[1724088501738,0.17134877,58947.0,58944.0,0.169652]
[1724088501952,0.023,58946.0,58945.0,0.17812197]
[1724088502155,0.023,58946.0,58945.0,0.00847297]
[1724088502356,0.023,58946.0,58944.0,0.169652]
[1724088502574,0.023,58946.0,58945.0,0.00855409]
[1724088503036,0.023,58946.0,58942.0,0.339314]
[1724088503243,0.023,58946.0,58945.0,0.00855409]
[1724088503448,0.023,58946.0,58944.0,0.169651]